{"text_format":"3","workbook":"xlsx","n_sheets":1,"sheets":["Libros sacados de la biblioteca"],"not_rendered":{"defined_names":4},"read":"whole","date_system":"1900"}

{"sheet":"Libros sacados de la biblioteca","index":0,"n_rows":9,"n_cols":8,"rows_kept":9,"merged":[[0,1,0,4],[0,5,0,6]]}
[null,"Hoja de préstamo de libros de la biblioteca",{"$nulls":3},"DÍAS HASTA EL VENCIMIENTO: ",null,10]
["Vencido","ALUMNO","CORREO DE CONTACTO","TELÉFONO DE CONTACTO","TÍTULO DEL LIBRO","FECHA DE PRÉSTAMO","FECHA DE DEVOLUCIÓN","DÍAS"]
[{"$f":"IFERROR(((Libros[[#This Row],[FECHA DE PRÉSTAMO]]+PermisoDiario)<TODAY())*(LEN(Libros[[#This Row],[FECHA DE DEVOLUCIÓN]])=0)*(LEN(Libros[[#This Row],[FECHA DE PRÉSTAMO]])>0),0)","v":0},"Naiara Padilla","alguien@ejemplo.com","555-0100","La familia Ingalls",{"$f":"DATE(YEAR(TODAY()),1,14)","v":"2018-01-14"},{"$f":"DATE(YEAR(TODAY()),1,21)","v":"2018-01-21"},{"$f":"IFERROR(IF(Libros[[#This Row],[FECHA DE DEVOLUCIÓN]]=\"\",IF(Libros[[#This Row],[FECHA DE PRÉSTAMO]]<>\"\", TODAY()-Libros[[#This Row],[FECHA DE PRÉSTAMO]],\"\"),Libros[[#This Row],[FECHA DE DEVOLUCIÓN]]-Libros[[#This Row],[FECHA DE PRÉSTAMO]]), \"\")","v":7}]
[{"$f":"IFERROR(((Libros[[#This Row],[FECHA DE PRÉSTAMO]]+PermisoDiario)<TODAY())*(LEN(Libros[[#This Row],[FECHA DE DEVOLUCIÓN]])=0)*(LEN(Libros[[#This Row],[FECHA DE PRÉSTAMO]])>0),0)","v":0},"David Pulido","alguien@ejemplo.com","555-0101","La Telaraña de Charlotte",{"$f":"DATE(YEAR(TODAY()),2,15)","v":"2018-02-15"},{"$f":"DATE(YEAR(TODAY()),2,18)","v":"2018-02-18"},{"$f":"IFERROR(IF(Libros[[#This Row],[FECHA DE DEVOLUCIÓN]]=\"\",IF(Libros[[#This Row],[FECHA DE PRÉSTAMO]]<>\"\", TODAY()-Libros[[#This Row],[FECHA DE PRÉSTAMO]],\"\"),Libros[[#This Row],[FECHA DE DEVOLUCIÓN]]-Libros[[#This Row],[FECHA DE PRÉSTAMO]]), \"\")","v":3}]
[{"$f":"IFERROR(((Libros[[#This Row],[FECHA DE PRÉSTAMO]]+PermisoDiario)<TODAY())*(LEN(Libros[[#This Row],[FECHA DE DEVOLUCIÓN]])=0)*(LEN(Libros[[#This Row],[FECHA DE PRÉSTAMO]])>0),0)","v":0},"Eulalia Terán","alguien@ejemplo.com","555-0102","La Caseta Mágica",{"$f":"DATE(YEAR(TODAY()),2,17)","v":"2018-02-17"},{"$f":"DATE(YEAR(TODAY()),2,22)","v":"2018-02-22"},{"$f":"IFERROR(IF(Libros[[#This Row],[FECHA DE DEVOLUCIÓN]]=\"\",IF(Libros[[#This Row],[FECHA DE PRÉSTAMO]]<>\"\", TODAY()-Libros[[#This Row],[FECHA DE PRÉSTAMO]],\"\"),Libros[[#This Row],[FECHA DE DEVOLUCIÓN]]-Libros[[#This Row],[FECHA DE PRÉSTAMO]]), \"\")","v":5}]
[{"$f":"IFERROR(((Libros[[#This Row],[FECHA DE PRÉSTAMO]]+PermisoDiario)<TODAY())*(LEN(Libros[[#This Row],[FECHA DE DEVOLUCIÓN]])=0)*(LEN(Libros[[#This Row],[FECHA DE PRÉSTAMO]])>0),0)","v":0},"Miguel Tórrez","alguien@ejemplo.com","555-0103","La Señora Frisby y las Ratas de Nimh",{"$f":"DATE(YEAR(TODAY()),2,17)","v":"2018-02-17"},{"$f":"DATE(YEAR(TODAY()),2,25)","v":"2018-02-25"},{"$f":"IFERROR(IF(Libros[[#This Row],[FECHA DE DEVOLUCIÓN]]=\"\",IF(Libros[[#This Row],[FECHA DE PRÉSTAMO]]<>\"\", TODAY()-Libros[[#This Row],[FECHA DE PRÉSTAMO]],\"\"),Libros[[#This Row],[FECHA DE DEVOLUCIÓN]]-Libros[[#This Row],[FECHA DE PRÉSTAMO]]), \"\")","v":8}]
[{"$f":"IFERROR(((Libros[[#This Row],[FECHA DE PRÉSTAMO]]+PermisoDiario)<TODAY())*(LEN(Libros[[#This Row],[FECHA DE DEVOLUCIÓN]])=0)*(LEN(Libros[[#This Row],[FECHA DE PRÉSTAMO]])>0),0)","v":0},"Marina Rodríguez","alguien@ejemplo.com","555-0104","Matilda",{"$f":"DATE(YEAR(TODAY()),2,18)","v":"2018-02-18"},{"$f":"DATE(YEAR(TODAY()),2,28)","v":"2018-02-28"},{"$f":"IFERROR(IF(Libros[[#This Row],[FECHA DE DEVOLUCIÓN]]=\"\",IF(Libros[[#This Row],[FECHA DE PRÉSTAMO]]<>\"\", TODAY()-Libros[[#This Row],[FECHA DE PRÉSTAMO]],\"\"),Libros[[#This Row],[FECHA DE DEVOLUCIÓN]]-Libros[[#This Row],[FECHA DE PRÉSTAMO]]), \"\")","v":10}]
[{"$f":"IFERROR(((Libros[[#This Row],[FECHA DE PRÉSTAMO]]+PermisoDiario)<TODAY())*(LEN(Libros[[#This Row],[FECHA DE DEVOLUCIÓN]])=0)*(LEN(Libros[[#This Row],[FECHA DE PRÉSTAMO]])>0),0)","v":1},"Carlota Melgar","alguien@ejemplo.com","555-0105","Crónicas de Narnia",{"$f":"DATE(YEAR(TODAY()),1,23)","v":"2018-01-23"},null,{"$f":"IFERROR(IF(Libros[[#This Row],[FECHA DE DEVOLUCIÓN]]=\"\",IF(Libros[[#This Row],[FECHA DE PRÉSTAMO]]<>\"\", TODAY()-Libros[[#This Row],[FECHA DE PRÉSTAMO]],\"\"),Libros[[#This Row],[FECHA DE DEVOLUCIÓN]]-Libros[[#This Row],[FECHA DE PRÉSTAMO]]), \"\")","v":164}]
[{"$f":"IFERROR(((Libros[[#This Row],[FECHA DE PRÉSTAMO]]+PermisoDiario)<TODAY())*(LEN(Libros[[#This Row],[FECHA DE DEVOLUCIÓN]])=0)*(LEN(Libros[[#This Row],[FECHA DE PRÉSTAMO]])>0),0)","v":0},"Verónica Fuentes","alguien@ejemplo.com","555-0106","El Estanque del Mirlo",{"$f":"TODAY()","v":"2018-07-06"},null,{"$f":"IFERROR(IF(Libros[[#This Row],[FECHA DE DEVOLUCIÓN]]=\"\",IF(Libros[[#This Row],[FECHA DE PRÉSTAMO]]<>\"\", TODAY()-Libros[[#This Row],[FECHA DE PRÉSTAMO]],\"\"),Libros[[#This Row],[FECHA DE DEVOLUCIÓN]]-Libros[[#This Row],[FECHA DE PRÉSTAMO]]), \"\")","v":0}]